bitfinex-derivatives/quotes_ETHF0:USTF0_20251013
["timestamp","ask_amount","ask_price","bid_price","bid_amount"]
[1760359913585,1.0799,4104.1,4103.5,3.21031509]
[1760359913786,1.0799,4104.0,4103.6,0.43829]
[1760359913993,3.2078,4104.7,4103.7,1.0458]
[1760359914288,3.2078,4104.7,4104.5,1.48399]
[1760359914694,4.2877,4104.7,4104.5,0.43819]
[1760359915484,3.2078,4104.7,4104.5,0.43819]
[1760359915685,3.2078,4105.3,4104.9,0.43815]
[1760359915890,3.2078,4105.3,4104.9,1.48395]
[1760359916490,4.2877,4105.8,4104.9,1.48395]
[1760359916691,0.255,4105.6,4104.9,1.48395]
[1760359917294,0.255,4105.7,4104.9,1.48395]
[1760359917492,1.0799,4104.9,4104.7,0.255]
[1760359917695,0.255,4105.1,4104.8,0.43816]
[1760359917893,3.2078,4105.3,4104.8,0.43816]
[1760359918094,0.255,4105.4,4104.9,1.0458]
[1760359918288,0.255,4105.4,4104.6,3.2078]
[1760359918490,3.2078,4105.1,4104.1,3.4628]
[1760359918695,1.3349,4104.9,4104.2,1.09558]
[1760359918888,0.0022277,4105.0,4104.9,0.43815]
[1760359919293,1.0821277,4105.0,4104.4,1.0458]
[1760359919592,0.0022277,4105.0,4104.6,0.43818]
[1760359919798,1.0799,4104.9,4104.8,0.43816]
[1760359919998,0.0022277,4105.0,4104.5,0.43819]
[1760359920200,0.0022277,4105.0,4104.2,0.255]
[1760359920201,4.46065682,4104.9,4104.2,0.255]
[1760359920398,3.38075682,4104.9,4104.1,3.64603]
[1760359920598,1.0799,4104.3,4103.5,0.44081509]
[1760359920797,0.4181,4104.0,4103.5,0.00251509]
[1760359920995,1.3349,4103.9,4103.5,0.00251509]
[1760359921206,3.14035885,4104.3,4104.2,0.43823]
[1760359921499,1.0799,4104.5,4104.3,0.43821]
[1760359921706,3.2078,4104.6,4104.4,1.48401]
[1760359922196,3.2078,4104.6,4104.4,0.43821]
[1760359922393,1.0799,4104.5,4104.3,0.43821]
[1760359922701,4.2877,4104.6,4104.5,0.4382]
[1760359923099,0.0022277,4105.0,4104.9,1.48395]
[1760359923299,1.0799,4104.9,4104.4,0.255]
[1760359923505,0.4203277,4105.0,4104.4,0.255]
[1760359924103,1.0799,4104.9,4104.6,0.43818]
[1760359924302,0.0022277,4105.0,4104.8,0.43816]
[1760359924603,1.0799,4104.9,4104.8,0.43816]
[1760359924800,3.23030221,4104.9,4104.4,0.255]
[1760359925006,3.23030221,4104.9,4104.6,0.43818]
[1760359925208,1.0799,4104.8,4104.6,0.43818]
[1760359925405,0.0022277,4105.0,4104.8,0.43816]
[1760359925604,0.0022277,4105.0,4104.4,1.3008]
[1760359925605,1.0821277,4105.0,4104.4,1.3008]
[1760359925906,0.0022277,4105.0,4104.4,1.3008]
[1760359926106,0.0022277,4105.0,4104.9,1.0458]
[1760359926300,0.0022277,4105.0,4104.9,1.3008]
[1760359928403,3.2078,4106.3,4106.2,0.43801]
[1760359928716,3.80771654,4106.3,4106.2,1.48381]
[1760359929506,3.81067026,4106.3,4106.2,1.48381]
[1760359930004,0.00295372,4106.3,4106.2,1.48381]
[1760359931301,0.00295372,4106.3,4106.0,3.2078]
[1760359931608,0.5995404,4106.2,4106.0,3.2078]
[1760359931809,0.5995404,4106.1,4106.0,3.2078]
[1760359932010,0.5995404,4106.1,4105.9,0.255]
[1760359932205,0.5995404,4106.0,4105.7,0.43806]
[1760359932414,1.67952568,4105.9,4105.6,1.3008]
[1760359932707,3.2078,4106.0,4105.7,1.48387]
[1760359932912,0.59963724,4105.9,4105.8,1.0458]
[1760359933312,0.00295372,4106.3,4105.6,0.255]
[1760359933606,0.59964365,4106.2,4105.9,1.48384]
[1760359933813,1.08285372,4106.3,4105.9,1.0458]
[1760359934008,1.67957032,4106.2,4105.9,1.0458]
[1760359934212,0.59967032,4106.1,4105.9,1.0458]
[1760359934412,1.0799,4105.9,4104.8,1.0458]
[1760359934711,1.0799,4105.2,4104.4,3.4628]
[1760359934903,0.59967032,4105.1,4104.4,3.901]
[1760359935100,0.59967032,4105.0,4104.4,3.901]
[1760359935300,1.67957032,4104.9,4104.4,3.901]
[1760359935504,0.59967032,4104.8,4104.7,1.0523]
[1760359935705,0.59967032,4104.8,4104.4,3.4628]
[1760359935910,0.59967032,4104.7,4104.4,4.5151]
[1760359936110,1.0289,4105.0,4104.4,4.5151]
[1760359936310,1.62847334,4104.9,4104.5,0.43819]
[1760359936512,0.59957334,4104.8,4104.4,4.5151]
[1760359936709,0.59957334,4104.7,4104.5,0.43819]
[1760359936909,1.62847334,4104.6,4104.4,0.255]
[1760359937114,0.59957334,4104.5,4104.4,0.255]
[1760359937314,5.29794774,4104.5,4103.6,0.43829]
[1760359937510,0.43825,4104.1,4103.5,0.00251509]
[1760359937710,0.86233273,4103.8,4103.5,0.00251509]
[1760359937913,0.59957334,4103.7,4103.6,1.0523]
[1760359938414,3.6424,4104.5,4103.6,1.0523]
[1760359938415,0.86233273,4104.6,4104.4,0.43821]
[1760359938722,0.59905653,4104.5,4104.0,3.4628]
[1760359938919,0.59686155,4104.4,4104.3,0.43821]
[1760359939211,0.59686155,4104.4,4104.1,0.43823]
[1760359939417,0.59686155,4104.3,4104.1,1.49053]
[1760359939614,0.5961667,4104.2,4104.0,0.255]
[1760359939819,0.5961667,4104.1,4103.5,3.63041509]
[1760359940019,0.59618642,4104.0,4103.6,1.3073]
[1760359940215,3.2078,4104.5,4103.7,1.0523]
[1760359940410,0.59614881,4104.4,4103.7,1.0523]
[1760359940612,0.59614881,4104.3,4103.9,0.43825]
[1760359940813,1.46719,4103.6,4103.5,0.00251509]
[1760359941014,0.4346,4103.5,4102.4,1.0523]
[1760359941213,1.0289,4102.7,4102.4,1.0523]
[1760359941413,1.0289,4103.1,4102.2,0.255]
[1760359941615,1.31010188,4102.6,4102.2,0.255]
[1760359941817,0.43846,4102.0,4101.5,3.2078]
[1760359942017,1.46741,4101.6,4101.5,0.00209754]
[1760359942321,1.62365951,4101.6,4101.5,0.00209754]
[1760359942516,0.59475951,4101.6,4101.5,0.00209754]
[1760359942715,0.59475951,4101.7,4101.5,3.20989754]
[1760359942916,0.25756527,4102.0,4101.6,1.0523]
[1760359943122,0.25756527,4102.0,4101.5,3.20989754]
[1760359943123,0.59982985,4101.9,4101.5,0.00209754]
[1760359943328,0.59982985,4101.8,4101.5,0.00209754]
[1760359943517,3.64629,4101.8,4101.5,0.00209754]
[1760359943820,1.62812796,4101.7,4101.5,0.00209754]
[1760359944122,3.2078,4101.8,4101.5,0.00209754]
[1760359944919,0.00256527,4102.0,4101.5,0.44061754]
[1760359945125,0.00256527,4102.0,4101.6,1.0523]
[1760359945318,0.44103527,4102.0,4101.6,1.0523]
[1760359945815,0.00256527,4102.0,4101.6,1.0523]
[1760359946015,1.03146527,4102.0,4101.6,1.0523]
[1760359946621,1.03146527,4102.0,4101.5,0.00209754]
[1760359946622,3.1696577,4101.9,4101.5,0.00209754]
[1760359946829,3.2078,4101.6,4101.5,0.00209754]
[1760359947023,4.2367,4101.6,4101.5,0.00209754]
[1760359947417,0.00256527,4102.0,4101.6,1.0523]
[1760359947624,0.25756527,4102.0,4101.6,1.0523]
[1760359947924,0.25756527,4102.0,4101.5,0.00209754]
[1760359947925,3.2078,4101.8,4101.5,0.00209754]
[1760359948114,1.0289,4101.6,4101.5,0.00209754]
[1760359948514,3.2078,4101.8,4101.5,0.00209754]
[1760359948717,1.0289,4101.8,4101.5,0.00209754]
[1760359949222,0.4385,4101.7,4101.5,0.00209754]
[1760359949423,1.0289,4101.6,4101.5,0.00209754]
[1760359949618,3.39735486,4101.8,4101.5,1.05439754]
[1760359949822,0.255,4101.8,4101.5,1.05439754]
[1760359950325,1.2839,4101.8,4101.5,1.05439754]
[1760359950524,0.00256527,4102.0,4101.6,1.0523]
[1760359950717,3.2078,4102.5,4102.3,0.43842]
[1760359950913,3.2078,4102.5,4102.4,1.0523]
[1760359951725,0.00308121,4102.5,4102.4,1.0523]
[1760359955421,0.87169188,4104.8,4102.1,3.4628]
[1760359955422,3.2078,4104.6,4103.1,1.0523]
[1760359955728,3.2078,4104.6,4104.0,0.4223]
[1760359956023,0.4382,4104.5,4103.9,0.254]
[1760359956227,0.4382,4104.5,4103.8,1.0523]
[1760359956228,0.43822,4104.3,4103.8,1.0523]
[1760359956526,1.0289,4104.2,4103.8,1.0523]
[1760359956728,0.00253645,4104.3,4103.8,1.0523]
[1760359957027,0.00253645,4104.3,4103.7,4.5141]
[1760359957219,0.43826,4104.0,4103.7,1.3063]
[1760359957417,1.0289,4104.0,4103.7,1.3063]
[1760359957621,1.46715,4104.0,4103.7,0.254]
[1760359957929,3.2078,4104.1,4103.3,0.254]
[1760359957930,3.11623656,4103.9,4103.3,0.254]
[1760359958325,1.34959,4104.2,4102.7,3.2078]
[1760359958326,3.2078,4103.6,4102.7,3.2078]
[1760359958627,4.57005444,4103.5,4102.7,3.2078]
[1760359959024,0.43837,4102.9,4102.6,0.254]
[1760359959230,0.43838,4102.8,4102.6,0.254]
[1760359959526,0.43838,4102.8,4102.0,3.6279]
[1760359959527,1.0289,4102.7,4102.0,3.2078]
[1760359959830,0.43843,4102.4,4101.8,0.254]
[1760359960526,3.2078,4103.1,4102.1,1.0523]
[1760359960725,1.0289,4102.9,4102.1,1.0523]
[1760359960922,1.0289,4102.9,4102.0,3.2078]
[1760359960923,4.2367,4102.6,4101.8,0.254]
[1760359961118,0.43847,4102.0,4101.8,0.254]
[1760359961423,1.0289,4101.9,4101.5,4.26219754]
[1760359961826,1.0289,4101.6,4101.5,0.00209754]
[1760359962133,4.26010555,4101.6,4101.5,0.00209754]
[1760359963026,4.51410555,4101.6,4101.5,0.00209754]
[1760359963326,1.2829,4101.6,4101.5,0.00209754]
[1760359963828,4.46218091,4101.6,4101.5,0.00209754]
[1760359964529,1.0289,4101.9,4101.5,0.00209754]
[1760359964721,0.69249,4101.8,4101.5,0.00209754]
[1760359964921,1.72139,4101.8,4101.5,0.00209754]
[1760359965928,1.0922,4101.7,4101.5,0.00209754]
[1760359966329,1.5307,4101.7,4101.5,0.00209754]
[1760359966831,1.0922,4101.7,4101.5,0.00209754]
[1760359967223,3.2078,4102.0,4101.6,1.0365]
[1760359967522,0.4385,4101.7,4101.5,0.00209754]
[1760359967727,1.3462,4101.6,4101.5,0.00209754]
[1760359967922,1.0922,4100.7,4099.9,1.0365]
[1760359968122,3.64642,4100.6,4099.9,1.0365]
[1760359968325,6.31965011,4100.6,4099.9,1.0365]
[1760359968528,0.43864,4100.4,4099.8,1.0365]
[1760359968724,0.43866,4100.2,4099.6,0.254]
[1760359968924,0.00250629,4100.2,4100.0,0.43867]
[1760359969226,0.00250629,4100.2,4100.1,4.2443]
[1760359970829,0.43852,4101.5,4100.8,0.43859]
[1760359971134,4.3,4101.8,4100.6,1.0365]
[1760359971135,3.12042873,4101.4,4101.0,1.0365]
[1760359971331,4.21262873,4101.4,4101.0,1.0365]
[1760359971636,2.13107986,4101.3,4101.0,1.0365]
[1760359971838,1.5326615,4101.3,4101.0,1.0365]
[1760359972027,4.7404615,4101.3,4101.0,1.0365]
[1760359972229,1.0922,4100.9,4099.9,1.0365]
[1760359972429,0.43861,4100.7,4099.9,1.0365]
[1760359972629,0.43861,4100.7,4099.9,1.47519]
[1760359972836,1.0922,4100.9,4100.3,3.2078]
[1760359973034,3.2097215,4101.3,4100.8,3.2078]
[1760359973231,4.3019215,4101.3,4100.8,4.2443]
[1760359973433,3.2097215,4101.3,4100.8,0.43859]
[1760359973626,3.2097215,4101.3,4101.1,0.43856]
[1760359973832,0.87169188,4102.1,4101.4,0.43852]
[1760359973833,3.2078,4102.0,4101.4,0.43852]
[1760359974027,0.43849,4101.8,4101.4,0.254]
[1760359974228,1.53068,4101.9,4101.5,1.0365]
[1760359974431,3.2078,4102.0,4101.5,1.0365]
[1760359974432,4.3,4102.5,4101.5,1.0365]
[1760359974633,1.0381873,4102.4,4101.8,3.64628]
[1760359974935,1.0381873,4102.4,4101.0,0.3596]
[1760359974936,0.43852,4101.5,4101.3,1.0365]
[1760359975133,1.0922,4101.7,4101.1,3.4618]
[1760359975431,3.2078,4101.8,4101.1,3.2078]
[1760359975432,4.30404,4101.8,4101.1,3.2078]
[1760359975639,0.43855,4101.2,4100.8,0.254]
[1760359975828,3.2078,4101.3,4100.5,3.2078]
[1760359976033,0.43858,4100.9,4100.5,0.254]
[1760359976234,0.43861,4100.7,4100.5,0.254]
[1760359976429,1.0619,4100.6,4100.5,0.254]
[1760359976638,1.0619,4100.3,4099.9,1.2374]
[1760359976831,1.0619,4101.0,4100.3,0.9834]
[1760359977134,3.2078,4101.1,4100.5,0.9834]
[1760359977335,0.43855,4101.2,4100.6,0.43861]
[1760359977632,0.43853,4101.4,4100.8,0.43859]
[1760359977936,0.43855,4101.2,4100.6,0.9834]
[1760359978124,0.43965,4101.2,4100.6,1.42201]
[1760359978525,3.61155688,4101.1,4100.6,0.254]
[1760359978736,0.0011,4101.2,4100.6,0.254]
[1760359978943,0.87169188,4102.2,4101.5,0.9834]
[1760359979238,0.59972551,4102.1,4101.6,0.4385]
[1760359979536,0.59972551,4102.1,4101.1,3.4618]
[1760359979537,3.2078,4101.7,4101.1,3.4618]
[1760359979737,1.0619,4101.5,4101.1,3.4618]
[1760359979937,1.50042,4101.5,4101.2,0.9834]
[1760359980238,3.13953698,4101.4,4100.6,4.1912]
[1760359980439,0.43866,4100.2,4100.0,3.2078]
[1760359980629,3.2078,4100.6,4100.0,0.254]
[1760359980931,1.0619,4101.2,4100.4,0.9834]
[1760359981136,0.43857,4101.0,4100.4,1.42203]
[1760359981340,0.43857,4101.0,4100.5,0.254]
[1760359981527,0.43861,4100.7,4100.3,4.1912]
[1760359981733,1.50051,4100.7,4100.4,0.254]
[1760359982031,3.2078,4100.8,4100.3,0.254]
[1760359982229,3.2078,4100.8,4100.5,0.9834]
[1760359982427,0.4386,4100.7,4100.5,0.9834]
[1760359982628,0.43869,4099.9,4099.6,0.25646767]
[1760359982931,0.4387,4099.8,4099.6,1.23986767]
[1760359983130,0.4387,4099.8,4099.6,0.00246767]
[1760359983131,1.0619,4099.7,4099.6,0.00246767]
[1760359984239,3.2078,4100.1,4099.6,0.00246767]
[1760359984430,1.0619,4100.6,4099.8,0.9834]
[1760359984629,3.64638,4100.9,4100.3,0.9834]
[1760359984841,3.64638,4100.9,4100.3,1.42204]
[1760359985031,3.2078,4100.9,4100.7,0.43859]
[1760359985235,3.2078,4101.5,4101.0,0.43856]
[1760359985536,1.0619,4101.7,4101.1,0.9834]
[1760359985742,1.30928648,4102.4,4101.0,3.2078]
[1760359985743,1.0619,4102.3,4101.6,0.9834]
[1760359986033,1.0619,4102.3,4101.6,1.2374]
[1760359986034,3.58983657,4102.1,4101.6,1.2374]
[1760359986241,3.15137657,4102.1,4101.7,0.9834]
[1760359986435,0.00225471,4102.4,4101.7,0.9834]
[1760359986735,0.00225471,4102.4,4102.3,0.9834]
[1760359987332,1.0619,4102.3,4102.0,3.2078]
[1760359987532,0.43843,4102.3,4102.0,0.254]
[1760359987741,1.0619,4102.3,4101.6,0.9834]
[1760359987938,0.43847,4102.0,4101.7,0.254]
[1760359988127,1.0619,4101.9,4101.7,0.254]
[1760359988438,1.0619,4102.2,4101.1,0.9834]
[1760359988631,4.70822,4101.5,4101.1,1.2374]
[1760359988832,0.60016453,4101.4,4101.1,1.2374]
[1760359989037,0.60016453,4101.3,4101.1,1.2374]
[1760359989233,1.0619,4101.0,4100.7,4.4452]
[1760359989436,1.50055,4100.3,4100.1,0.254]
[1760359989637,3.2078,4100.5,4099.7,0.9834]
[1760359989939,1.0619,4100.0,4099.8,0.254]
[1760359990135,3.6364,4100.5,4099.8,0.254]
[1760359990342,1.0619,4100.0,4099.8,0.254]
[1760359990545,1.0619,4099.7,4099.6,0.00246767]
[1760359990834,1.66270109,4099.7,4099.6,0.00246767]
[1760359991333,4.82988684,4099.7,4099.6,0.00246767]
[1760359992341,4.82966714,4099.7,4099.6,0.00246767]
[1760359992640,0.4286,4099.5,4098.0,3.2078]
[1760359992838,0.43886,4098.4,4098.0,3.2078]
[1760359993042,1.0619,4098.6,4097.0,0.3779]
[1760359993043,3.2078,4098.1,4097.2,3.2078]
[1760359993241,3.2078,4098.1,4097.4,0.254]
[1760359993242,1.0619,4097.9,4097.4,0.254]
[1760359993431,1.0619,4097.9,4097.4,0.69295]
[1760359993629,1.06495787,4097.9,4097.8,0.0262659]
[1760359994738,4.16818097,4097.9,4097.8,0.0262659]
[1760359995143,3.70562753,4097.9,4096.7,3.4618]
[1760359995339,0.43901,4097.0,4096.2,1.0771]
[1760359995540,0.43901,4097.0,4096.1,3.64689]
[1760359995541,0.9758,4096.8,4096.1,3.64689]
[1760359995845,0.4249,4097.0,4096.1,3.64689]
[1760359995846,0.253,4097.3,4096.5,0.43905]
[1760359996045,1.2298,4097.4,4096.6,0.43903]
[1760359996252,3.16007084,4097.2,4096.6,3.64683]
[1760359996638,0.254,4097.4,4096.7,1.0771]
[1760359996839,0.254,4097.4,4096.7,1.51904007]
[1760359997535,0.254,4097.4,4096.7,1.08001007]
[1760359997733,0.00305787,4097.9,4097.1,3.2078]
[1760359997938,0.00305787,4097.9,4097.8,4.2849]
[1760359998139,3.2078,4099.0,4098.4,1.0771]
[1760359998335,3.2078,4099.0,4097.9,1.0771]
[1760359998542,3.19292723,4098.9,4098.4,0.43884]
[1760359998742,0.9758,4099.2,4098.7,0.43881]
[1760359999047,3.14331098,4099.4,4098.7,1.51591]
[1760359999239,3.14537344,4099.4,4098.7,1.51591]
[1760359999440,0.00206246,4099.4,4098.8,0.4388]
[1760359999742,3.14331098,4099.3,4098.6,0.43882]
[1760359999940,0.43879,4099.0,4098.0,3.2078]
[1760360000136,3.14331098,4099.3,4098.2,1.0771]
[1760360000336,0.00206246,4099.4,4098.5,3.5471]
[1760360000640,0.00206246,4099.4,4099.3,1.0771]
[1760360003147,0.43865,4100.3,4099.3,1.0771]
[1760360003453,0.43868,4100.0,4099.4,0.43874]
[1760360003646,3.15980503,4100.4,4099.6,0.43871]
[1760360003647,1.41446,4100.2,4099.6,0.43871]
[1760360003951,3.2078,4100.5,4099.8,0.43869]
[1760360004246,3.21026288,4100.5,4099.8,0.00196763]
[1760360004443,0.00246288,4100.5,4100.3,1.51574]
[1760360004643,4.62469288,4100.5,4100.0,1.3301]
[1760360004845,0.9758,4100.3,4100.0,1.3301]
[1760360005246,0.9758,4100.3,4100.0,1.76877]
[1760360005545,3.21026288,4100.5,4100.0,0.253]
[1760360005740,0.00246288,4100.5,4100.4,1.0771]
[1760360005943,0.00246288,4100.5,4100.1,1.0771]
[1760360006442,4.14887833,4100.4,4099.8,0.00196763]
[1760360006643,0.00246288,4100.5,4100.1,1.51576]
[1760360006844,0.00246288,4100.5,4100.3,0.43864]
[1760360007044,3.2078,4101.5,4100.5,1.09656]
[1760360007253,0.9758,4101.4,4100.6,0.254]
[1760360007447,0.9758,4101.4,4100.5,3.2078]
[1760360007748,0.43862,4100.6,4100.2,0.253]
[1760360007944,3.2078,4100.7,4100.3,1.51574]
[1760360008140,0.4386,4100.7,4100.4,1.0771]
[1760360008342,0.43861,4100.6,4100.4,1.0771]
[1760360008544,0.44041089,4100.6,4100.4,1.0771]
[1760360008945,0.00180089,4100.6,4100.4,1.0771]
[1760360009151,0.00180089,4100.6,4100.5,1.0771]
[1760360010250,0.97760089,4100.6,4100.2,1.76875]
[1760360010453,0.00180089,4100.6,4100.5,1.0771]
[1760360012057,0.00180089,4100.6,4100.5,4.6652]
[1760360012862,4.1836,4101.7,4101.5,0.43851]
[1760360013162,3.2078,4101.7,4101.6,1.0771]
[1760360013865,3.21019962,4101.7,4101.6,1.0771]
[1760360014355,0.00239962,4101.7,4101.6,1.0771]
[1760360015658,0.00239962,4101.7,4101.6,1.3301]
[1760360016559,0.00239962,4101.7,4101.5,0.43851]
[1760360016758,0.00239962,4101.7,4101.6,1.0771]
[1760360017155,0.00239962,4101.7,4101.6,1.51561]
[1760360018054,0.9978,4102.8,4102.2,0.43843]
[1760360018055,0.43841,4102.6,4102.2,0.43843]
[1760360018361,6.30692256,4102.7,4102.1,1.0771]
[1760360018552,0.9758,4102.6,4102.3,1.0771]
[1760360018855,3.2078,4102.7,4102.0,0.253]
[1760360019159,3.21093414,4102.7,4102.2,1.09611]
[1760360019358,3.21093414,4102.7,4102.6,1.5155]
[1760360019856,0.97893414,4102.7,4102.3,1.51553]
[1760360020052,1.41732414,4102.7,4102.1,1.0771]
[1760360020249,0.43842,4102.4,4102.1,1.0771]
[1760360020449,1.41432,4101.5,4101.1,1.0771]
[1760360020656,0.4385,4101.7,4101.4,0.69153]
[1760360020863,1.41429,4101.8,4101.5,1.0771]
[1760360021550,0.9758,4103.0,4101.8,1.0771]
[1760360021754,0.9758,4103.0,4102.6,1.0771]
[1760360021953,1.4142,4102.6,4102.2,0.43844]
[1760360022154,0.43846,4102.1,4101.8,1.0771]
[1760360022351,0.43848,4101.9,4101.7,3.4608]
[1760360022657,3.2078,4102.4,4101.8,1.0771]
[1760360022851,0.43846,4102.0,4101.8,1.51557]
[1760360023256,0.43846,4102.1,4101.9,0.43847]
[1760360023456,1.41426,4102.0,4101.7,3.89929]
[1760360023658,0.9758,4102.0,4101.8,0.43848]
[1760360023856,0.43845,4102.2,4101.9,0.43847]
[1760360024056,3.2078,4102.4,4102.1,0.43845]
[1760360024057,4.62202,4102.4,4102.1,0.43845]
[1760360024358,0.44152414,4102.7,4102.2,1.0771]
[1760360024556,0.4384,4102.6,4102.3,0.43842]
[1760360024764,0.4384,4102.6,4102.4,1.51552]
[1760360024964,0.4384,4102.6,4102.5,1.0771]
[1760360025259,0.00313414,4102.7,4102.5,0.43841]
[1760360025462,0.00313414,4102.7,4102.6,1.0771]
[1760360025964,0.44152414,4102.7,4102.6,1.0771]
[1760360026557,0.00313414,4102.7,4102.6,1.0771]
[1760360026952,0.00313414,4102.7,4102.3,0.9698]
[1760360027159,0.43842,4102.4,4102.3,1.2218]
[1760360027469,0.43841,4102.5,4102.3,0.9698]
[1760360027667,0.9752,4102.6,4102.3,0.9698]
[1760360028162,0.00313414,4102.7,4102.3,0.9698]
[1760360028370,0.43842,4102.4,4102.3,0.9698]
[1760360028663,0.44152414,4102.7,4102.4,0.43842]
[1760360029271,0.4384,4102.6,4102.5,0.9698]
[1760360029474,0.00313414,4102.7,4102.5,0.9698]
[1760360029663,0.00313414,4102.7,4102.6,0.4384]
[1760360029864,0.00313414,4102.7,4102.6,1.4082]
[1760360030264,0.44152414,4102.7,4102.6,1.4082]
[1760360030461,0.44152414,4102.7,4101.7,1.09622]
[1760360030462,0.97833414,4102.7,4101.7,1.09622]
[1760360030667,0.4384,4102.6,4102.4,1.40821]
[1760360030867,0.00313414,4102.7,4102.4,0.9698]
[1760360031070,0.00313414,4102.7,4102.6,1.4082]
[1760360035272,0.00313414,4102.7,4102.6,1.6602]
[1760360037873,0.9752,4102.5,4102.2,0.43844]
[1760360038078,0.9752,4102.5,4101.6,1.09625]
[1760360038079,1.09609,4102.3,4101.4,0.9698]
[1760360038377,3.6099,4102.0,4101.4,1.2218]
[1760360038571,1.41372,4101.5,4101.4,0.252]
[1760360038765,0.43852,4101.5,4101.4,0.252]
[1760360038967,0.43852,4101.5,4101.4,1.2218]
[1760360039476,1.41372,4101.5,4101.4,0.252]
[1760360039676,2.01160995,4101.5,4101.4,0.252]
[1760360039872,0.59788995,4101.5,4101.4,0.69053]
[1760360040076,0.59789149,4101.6,4101.5,0.43852]
[1760360040276,0.43853,4101.4,4101.3,0.9698]
[1760360040477,0.43853,4101.4,4101.2,0.252]
[1760360040478,0.43853,4101.4,4101.2,0.69055]
[1760360040682,3.80569184,4101.5,4101.3,0.43853]
[1760360040683,3.2078,4101.5,4101.3,0.43853]
[1760360040872,0.43848,4101.9,4101.8,0.9698]
[1760360041176,1.03658432,4101.9,4101.8,0.9698]
[1760360041371,3.15675963,4102.0,4101.8,0.9698]
[1760360041579,1.85002602,4102.7,4102.0,0.3803]
[1760360041777,1.85002602,4102.7,4102.2,0.9698]
[1760360041778,3.64623,4102.3,4102.2,0.9698]
[1760360041967,4.2446155,4102.3,4102.2,0.9698]
[1760360044780,5.2198155,4102.3,4102.2,0.9698]
[1760360044977,4.2446155,4102.3,4102.2,0.9698]
[1760360046079,0.43847,4102.0,4101.8,0.9698]
[1760360046381,0.5983855,4101.9,4101.8,0.9698]
[1760360047481,0.5983855,4101.9,4101.8,1.40828]
[1760360048277,1.0368555,4101.9,4101.8,1.40828]
[1760360049180,1.0368555,4101.9,4101.8,0.9698]
[1760360049482,1.0368555,4101.9,4101.0,1.43682]
[1760360049483,0.43858,4100.9,4100.8,1.40838]
[1760360049782,0.43853,4101.4,4101.3,0.9698]
[1760360049983,1.03750851,4101.4,4101.3,0.9698]
[1760360050887,0.87466132,4102.3,4101.5,0.4032]
[1760360051182,0.43844,4102.2,4102.1,0.9698]
[1760360051979,0.00313414,4102.7,4102.6,0.9698]
[1760360052175,0.00313414,4102.7,4102.6,1.2218]
[1760360052374,1.41362,4102.5,4102.1,0.9698]
[1760360052577,1.41364,4102.3,4102.2,0.252]
[1760360052986,0.43844,4102.3,4102.2,1.2218]
[1760360054075,0.00313414,4102.7,4102.6,0.9698]
[1760360054279,3.2078,4103.5,4103.0,0.77875]
[1760360054477,3.2078,4103.5,4103.3,0.43832]
[1760360054782,0.43833,4103.3,4103.1,1.2218]
[1760360054979,4.183,4103.5,4101.7,2.81818505]
[1760360054980,0.9752,4103.2,4103.0,0.252]
[1760360055282,1.41355,4103.1,4103.0,0.252]
[1760360055880,1.41355,4103.1,4102.2,0.43844]
[1760360055881,0.4028,4103.0,4102.0,1.4026]
[1760360056186,0.43849,4101.8,4101.7,0.252]
[1760360056385,0.43849,4101.8,4101.7,1.2868]
[1760360056688,0.43849,4101.8,4101.7,1.0348]
[1760360056985,0.43849,4101.8,4101.7,1.03764683]
[1760360057988,0.43847,4102.0,4101.8,1.0348]
[1760360058282,0.43847,4101.9,4101.8,0.252]
[1760360058486,0.43847,4101.9,4101.8,1.2868]
[1760360059482,0.43847,4101.9,4101.7,0.00284683]
[1760360059483,0.9721,4101.8,4101.7,0.00284683]
[1760360060783,0.43847,4101.9,4101.8,1.0348]
[1760360061185,1.41057,4101.9,4101.7,0.00284683]
[1760360061390,0.9721,4101.8,4101.7,0.00284683]
[1760360061892,0.43847,4101.9,4101.7,0.00284683]
[1760360062089,0.43847,4101.9,4101.8,1.0348]
[1760360062586,1.41057,4101.9,4101.7,0.00284683]
[1760360062784,0.9721,4101.8,4101.7,0.00284683]
[1760360063386,1.09638,4101.3,4100.7,1.0348]
[1760360063580,1.09641,4101.1,4100.1,1.0348]
[1760360063791,0.43861,4100.7,4100.5,0.3404]
[1760360064192,0.4386,4100.8,4100.6,1.0348]
[1760360064489,0.43857,4101.0,4100.9,1.0348]
[1760360065594,3.2078,4101.8,4101.2,1.0348]
[1760360065791,0.43853,4101.4,4101.2,1.0348]
[1760360065985,3.2078,4101.8,4101.3,1.0348]
[1760360066185,3.2078,4101.8,4101.6,1.0348]
[1760360066391,0.9721,4102.2,4101.6,1.0348]
[1760360066590,1.69402551,4102.1,4101.5,1.4151]
[1760360066783,1.09614,4102.1,4101.5,1.4151]
[1760360066991,0.59788579,4102.0,4101.6,1.0348]
[1760360067187,0.4385,4101.7,4101.6,1.0348]
[1760360067387,1.09642,4101.1,4100.6,1.03752466]
[1760360067589,0.4386,4100.7,4100.6,1.03752466]
[1760360068794,0.43856,4101.1,4101.0,1.4151]
[1760360069297,0.43856,4101.1,4101.0,1.85367]
[1760360069491,0.43856,4101.1,4101.0,1.4151]
[1760360069691,0.43855,4101.2,4101.1,1.47335]
[1760360069891,0.43855,4101.2,4101.1,1.0348]
[1760360070694,0.43855,4101.2,4101.1,1.47336]
[1760360070894,0.43855,4101.2,4101.1,1.0348]
[1760360071292,0.43855,4101.2,4101.1,1.47336]
[1760360072198,0.252,4101.9,4101.1,1.47336]
[1760360072199,0.43852,4101.5,4101.4,0.43852]
[1760360072396,3.2078,4102.0,4101.6,1.0348]
[1760360072597,0.43847,4101.9,4101.8,0.43848]